account_party,address,code,date,document_number,expense_code_name,expense_code_name_short,id,party_cell,party_cell_code,party_cell_geoobject,purpose,source_bank_account_number,source_bank_account_type,sum,target_legal_personality,target_legal_personality_code,target_type
ОПЗЖ,"Дніпропетровська область, Дніпро́, вулиця Курсантська, 24",70,2017-12-28,Дог. №26/95273 від 2017-10-03,Банківські послуги,Інші витрати,273369,Одеська обласна організація Опозиційна платформа - За життя,34055433,Одеська область,Комісія за виконання платежів в операційний час,26001010511596,current,20.00,"ПАТ ""Банк Восток""",26237202,юридична особа
ОПЗЖ,"Дніпропетровська область, Дніпро́, вулиця Курсантська, 24",70,2017-12-28,Дог. №26/95273 від 2017-10-03,Банківські послуги,Інші витрати,273368,Одеська обласна організація Опозиційна платформа - За життя,34055433,Одеська область,За розрахункове обслуговування рахунку,26001010511596,current,100.00,"ПАТ ""Банк Восток""",26237202,юридична особа
ОПЗЖ,"Дніпропетровська область, Дніпро́, вулиця Курсантська, 24",70,2017-12-28,Дог. №26/95273 від 2017-10-03,Банківські послуги,Інші витрати,273367,Одеська обласна організація Опозиційна платформа - За життя,34055433,Одеська область,За оформлення платіжного доручення,26001010511596,current,20.00,"ПАТ ""Банк Восток""",26237202,юридична особа
ОПЗЖ,"Одеська область, Овідіопольський район, Овідіополь, вул. Шевченка, 214",60,2017-12-28,п/д № 3 від 2017-12-28,Інші податки,Податкові платежі,273366,Одеська обласна організація Опозиційна платформа - За життя,34055433,Одеська область,"Судовий збір за позовом Овідіопольської місцевої (районної в Одеській області) організації ПП ""ЗА ЖИТТЯ!"" в справі №509/3941/17, Овідіопольський районний суд",26001010511596,current,640.00,Управління Державної казначейської служби України в Овідіопольському районі Одеської області,37929461,юридична особа
ОПЗЖ,"Одеська область, Овідіопольський район, Овідіополь, вул. Шевченка, 214",60,2017-12-28,п/д № 2 від 2017-12-28,Інші податки,Податкові платежі,273365,Одеська обласна організація Опозиційна платформа - За життя,34055433,Одеська область,"Судовий збір за позовом Овідіопольської місцевої (районної в Одеській області) організації ПП ""ЗА ЖИТТЯ!"" в справі №509/3941/17, Овідіопольський районний суд",26001010511596,current,640.00,Управління Державної казначейської служби України в Овідіопольському районі Одеської області,37929461,юридична особа
ОПЗЖ,"Київ, вулиця Михайла Грушевського, 1Д",70,2017-12-20,Arб/н,Банківські послуги,Інші витрати,273371,Харківська обласна організація Опозиційна платформа - За життя,33900035,Харківська область,"погашення простроченої заборгованості за РКО, згідно з відкритою офертою банку № б/н від 2017-12-14 без пдв",26002052231985,current,103.00,"ПАТ КБ ""Приватбанк""",14360570,юридична особа
ОПЗЖ,"Київ, вулиця Мечникова, 14/1",79,2017-12-19,п/д №9 від 2017-12-19,"Оренда будинків і приміщень та експлуатаційні витрати (прибирання, страхування орендованих будинків, охорона, сигналізація, ремонт, вивіз сміття, тощо)",Оренда нерухомості,273354,Центральний офіс,21709375,Україна,"оренда приміщень за листопад згідно р/ф №СФ-0000997 від 2017-10-31, за грудень 2017 гзідно р/ф № СФ-0001091 від 30.11.17, в т.ч. ПДВ 266,67 грн.",26002700419742,current,1600.00,"Асоціація ""Українсько-Ізраїльська торгова палата""",23153841,юридична особа
ОПЗЖ,"Київ, вулиця Польова, 21",79,2017-12-18,п/д №1,"Оренда будинків і приміщень та експлуатаційні витрати (прибирання, страхування орендованих будинків, охорона, сигналізація, ремонт, вивіз сміття, тощо)",Оренда нерухомості,273370,Харківська обласна організація Опозиційна платформа - За життя,33900035,Харківська область,"оплата за суборенду нежитлового приміщення згідно рах. №219 від 2017-10-02 у сумі 22600 грн., ПДВ - 20% 4520",26002052231985,current,27120.00,"ТОВ ""Новини 24 години""",33786517,юридична особа
ОПЗЖ,"Київ, Кловський узвіз, 9/2",70,2017-12-01,дог № 26002700419742 від 2017-06-13р._13,Банківські послуги,Інші витрати,273353,Центральний офіс,21709375,Україна,"плата за РКО: фіксована плата по тарифному пакету ""Стандарт"" згідно з п. 4.1. дог. №26002700419742 від 2017-06-13р. Без ПДВ",26002700419742,current,150.00,"ПАТ КБ ""Правекс-банк""",14360920,юридична особа
ОПЗЖ,"Дніпропетровська область, Дніпро́, вулиця Курсантська, 24",70,2017-11-30,Дог. №26/95273 від 2017-10-03,Банківські послуги,Інші витрати,273364,Одеська обласна організація Опозиційна платформа - За життя,34055433,Одеська область,За розрахункове обслуговування рахунку,26001010511596,current,100.00,"ПАТ ""Банк Восток""",26237202,юридична особа
ОПЗЖ,"Дніпропетровська область, Дніпро́, вулиця Курсантська, 24",70,2017-11-23,Дог. №26/95273 від 2017-10-03,Банківські послуги,Інші витрати,273363,Одеська обласна організація Опозиційна платформа - За життя,34055433,Одеська область,Погашення заборгованості за РКО,26001010511596,current,21.00,"ПАТ ""Банк Восток""",26237202,юридична особа
ОПЗЖ,"Київ, вулиця Предславинська, 28, 1003",72,2017-11-17,п/д №7 від 2017-11-17,"Придбання, ремонт офісної техніки та програмного забезпечення (Бухгалтерські програми, Ліга.закон, домени)",Придбання офісної техніки та програмного забезпечення,273352,Центральний офіс,21709375,Україна,"оплата сервера згідно дог ""ППЗЖ-С від 2017-10-01, в т.ч ПДВ - 202,00 грн.",26002700419742,current,1212.00,"ТОВ ""Дрім лайн холдінг""",34981026,юридична особа
ОПЗЖ,"Київ, вулиця Предславинська, 28, 1003",76,2017-11-17,п/д №6 від 2017-11-17,Послуги зв’язку,Послуги зв’язку,273351,Центральний офіс,21709375,Україна,"оплата за необмежений доступ до мережі Інтернет згідно дог. №ППЗЖ від 2017-10-01р., в т.ч. ПДВ - 33,33 грн.",26002700419742,current,300.00,"ТОВ ""Дрім лайн холдінг""",34981026,юридична особа
ОПЗЖ,"Київ, Кловський узвіз, 9/2",70,2017-11-17,дог № 26002700419742 від 2017-06-13р._12,Банківські послуги,Інші витрати,273350,Центральний офіс,21709375,Україна,Сплата комісії юридичних осіб за РКО за відправку платежів по СЕП згідно дог № 26002700419742 від 2017-06-13 р. без ПДВ.,26002700419742,current,40.00,"ПАТ КБ ""Правекс-банк""",14360920,юридична особа
ОПЗЖ,"Київ, Кловський узвіз, 9/2",70,2017-11-17,дог № 26002700419742 від 2017-06-13р._11,Банківські послуги,Інші витрати,273349,Центральний офіс,21709375,Україна,Сплата комісії юридичних осіб за РКО за відправку платежів по СЕП згідно дог № 26002700419742 від 2017-06-13 р. без ПДВ.,26002700419742,current,40.00,"ПАТ КБ ""Правекс-банк""",14360920,юридична особа
ОПЗЖ,"Київ, Кловський узвіз, 9/2",70,2017-11-17,дог № 26002700419742 від 2017-06-13р._10,Банківські послуги,Інші витрати,273348,Центральний офіс,21709375,Україна,Сплата комісії юридичних осіб за РКО за відправку платежів по СЕП згідно дог № 26002700419742 від 2017-06-13 р. без ПДВ.,26002700419742,current,40.00,"ПАТ КБ ""Правекс-банк""",14360920,юридична особа
ОПЗЖ,"Київ, вулиця Мечникова, 14/1",79,2017-11-16,п/д №5 від 2017-11-16,"Оренда будинків і приміщень та експлуатаційні витрати (прибирання, страхування орендованих будинків, охорона, сигналізація, ремонт, вивіз сміття, тощо)",Оренда нерухомості,273347,Центральний офіс,21709375,Україна,"оренда приміщення згідно р/ф №900 від 2017-09-28, в т.ч ПДВ 133,33 грн.",26002700419742,current,800.00,"Асоціація ""Українсько-Ізраїльська торгова палата""",23153841,юридична особа
ОПЗЖ,"Київ, бульвар Тараса Шевченка, 18",76,2017-11-16,п/д №4 від 2017-11-16,Послуги зв’язку,Послуги зв’язку,273346,Центральний офіс,21709375,Україна,"послуги електрозвʼязку о/р 8200004425510701 в Т.ч. ПДВ, 79,08 грн.",26002700419742,current,474.47,"ПАТ ""Укртелеком""",21560766,юридична особа
ОПЗЖ,"Київ, Кловський узвіз, 9/2",70,2017-11-01,дог № 26002700419742 від 2017-06-13р._9,Банківські послуги,Інші витрати,273345,Центральний офіс,21709375,Україна,"плата за РКО: фіксована плата по тарифному пакету ""Стандарт"" згідно з п. 4.1. дог. №26002700419742 від 2017-06-13р. Без ПДВ",26002700419742,current,150.00,"ПАТ КБ ""Правекс-банк""",14360920,юридична особа
ОПЗЖ,"Дніпропетровська область, Дніпро́, вулиця Курсантська, 24",70,2017-10-31,Дог. №26/95273 від 2017-10-03,Банківські послуги,Інші витрати,273362,Одеська обласна організація Опозиційна платформа - За життя,34055433,Одеська область,За розрахункове обслуговування рахунку,26001010511596,current,79.00,"ПАТ ""Банк Восток""",26237202,юридична особа
ОПЗЖ,"Київ, вулиця Михайла Грушевського, 1Д",70,2017-10-23,меморіальний ордер № ANO0HDH10Yвід 2017-10-23,Банківські послуги,Інші витрати,273358,Вінницька обласна організація Опозиційна платформа - За життя,41278737,Вінницька область,"Комісія за виконання платежів в національній валюті, згідно відкритою офертою банку № б/н від 2017-08-02 та тарифів банку без ПДВ",26008055328839,current,3.00,"ПАТ КБ ""Приватбанк""",14360570,юридична особа
ОПЗЖ,"Вінницька область, Вінниця, вулиця Чехова, 12",58,2017-10-23,П/д № 1 від 2017-10-23,"Виготовлення друкованих матеріалів (плакатів, листівок, буклетів та інших агітаційних матеріалів)",Друкована агітація,273357,Вінницька обласна організація Опозиційна платформа - За життя,41278737,Вінницька область,за поліграфічну продукцію зг. Рах № СФ003900 від 2017-10-20 в т.ч. ПДВ,26008055328839,current,3005.04,"ТОВ ""Прес корпорейшн лімітед""",32168763,юридична особа
ОПЗЖ,"Київ, Кловський узвіз, 9/2",70,2017-10-23,дог № 26002700419742 від 2017-06-13р._8,Банківські послуги,Інші витрати,273344,Центральний офіс,21709375,Україна,Сплата комісії юридичних осіб за РКО за відправку платежів по СЕП згідно дог № 26002700419742 від 2017-06-13 р. без ПДВ.,26002700419742,current,40.00,"ПАТ КБ ""Правекс-банк""",14360920,юридична особа
ОПЗЖ,"Київ, вулиця Польова, 21",51,2017-10-23,"п/д ""8 від 2017-10-23",Оплата ефірного часу на ТБ,Телереклама,273343,Центральний офіс,21709375,Україна,"Розміщення рекламних роликів партії згідно рахунку №208 від2017-09-30, в т.ч ПДВ - 51435,35 грн.",26002700419742,current,308612.12,"ТОВ ""Новини 24 години""",33786517,юридична особа
ОПЗЖ,"Київ, вулиця Польова, 21",51,2017-10-23,п/д №7 від 2017-10-23.2017,Оплата ефірного часу на ТБ,Телереклама,273342,Центральний офіс,21709375,Україна,"Розміщення рекламних роликів партії згідно рахунку №207 від2017-09-30, в т.ч ПДВ - 11501,67 грн.",26002700419742,current,69010.00,"ТОВ ""Новини 24 години""",33786517,юридична особа
ОПЗЖ,"Київ, Кловський узвіз, 9/2",70,2017-10-23,дог № 26002700419742 від 2017-06-13р._7,Банківські послуги,Інші витрати,273341,Центральний офіс,21709375,Україна,Сплата комісії юридичних осіб за РКО за відправку платежів по СЕП згідно дог № 26002700419742 від 2017-06-13 р. без ПДВ.,26002700419742,current,40.00,"ПАТ КБ ""Правекс-банк""",14360920,юридична особа
ОПЗЖ,"Київ, вулиця Предславинська, 28, 1003",78,2017-10-10,п/д №5 від 2017-10-10,Оренда обладнання та технічних засобів,Оренда обладнання та технічних засобів,273340,Центральний офіс,21709375,Україна,"оренда сервера згідно дог ""ППЗЖ-С від 2017-10-01, в т.ч ПДВ - 67,33",26002700419742,current,404.00,"ТОВ ""Дрім лайн холдінг""",34981026,юридична особа
ОПЗЖ,"Київ, Кловський узвіз, 9/2",70,2017-10-10,дог № 26002700419742 від 2017-06-13р._6,Банківські послуги,Інші витрати,273339,Центральний офіс,21709375,Україна,Сплата комісії юридичних осіб за РКО за відправку платежів по СЕП згідно дог № 26002700419742 від 2017-06-13 р. без ПДВ.,26002700419742,current,40.00,"ПАТ КБ ""Правекс-банк""",14360920,юридична особа
ОПЗЖ,"Київ, Кловський узвіз, 9/2",70,2017-10-10,дог № 26002700419742 від 2017-06-13р._5,Банківські послуги,Інші витрати,273338,Центральний офіс,21709375,Україна,Сплата комісії юридичних осіб за РКО за відправку платежів по СЕП згідно дог № 26002700419742 від 2017-06-13 р. без ПДВ.,26002700419742,current,40.00,"ПАТ КБ ""Правекс-банк""",14360920,юридична особа
ОПЗЖ,"Київ, вулиця Предславинська, 28, 1003",76,2017-10-10,п/д №6 від 2017-10-10,Послуги зв’язку,Послуги зв’язку,273337,Центральний офіс,21709375,Україна,"Щомісячна плата за необмежений доступ до мережі Інтернет згідно дог. №ППЗЖ від 2017-10-01р., в т.ч. ПДВ - 16,67 грн.",26002700419742,current,100.00,"ТОВ ""Дрім лайн холдінг""",34981026,юридична особа
ОПЗЖ,"Дніпропетровська область, Дніпро́, вулиця Курсантська, 24",70,2017-10-04,Дог. №26/95273 від 2017-10-03,Банківські послуги,Інші витрати,273361,Одеська обласна організація Опозиційна платформа - За життя,34055433,Одеська область,Комісія за виконання платежів в операційний час,26001010511596,current,10.00,"ПАТ ""Банк Восток""",26237202,юридична особа
ОПЗЖ,"Дніпропетровська область, Дніпро́, вулиця Курсантська, 24",70,2017-10-04,Дог. №26/95273 від 2017-10-03,Банківські послуги,Інші витрати,273360,Одеська обласна організація Опозиційна платформа - За життя,34055433,Одеська область,Списання комісії за підготовку платіжного доручення,26001010511596,current,10.00,"ПАТ ""Банк Восток""",26237202,юридична особа
ОПЗЖ,"Одеська область, Кілійський район, Вилкове",59,2017-10-04,п/д № 1 від 2017-10-04,Грошова застава,Грошова застава,273359,Одеська обласна організація Опозиційна платформа - За життя,34055433,Одеська область,"Грошова застава за Кілійську місцеву (районну в Одеській області) організацію ПП ""ЗА ЖИТТЯ!"" з висування виборчого списку кандидатів в депутати до Вилківської міської ради Кілійського району Одеської області",26001010511596,current,1201.00,Вилківська МВК,34211218,юридична особа
ОПЗЖ,"Київ, Кловський узвіз, 9/2",70,2017-10-02,дог № 26002700419742 від 2017-06-13р._4,Банківські послуги,Інші витрати,273336,Центральний офіс,21709375,Україна,"плата за РКО: фіксована плата по тарифному пакету ""Стандарт"" згідно з п. 4.1. дог. №26002700419742 від 2017-06-13р. Без ПДВ",26002700419742,current,150.00,"ПАТ КБ ""Правекс-банк""",14360920,юридична особа
ОПЗЖ,"Київ, Кловський узвіз, 9/2",70,2017-10-02,договір № 1375 2000-01-12р._2,Банківські послуги,Інші витрати,273323,Центральний офіс,21709375,Україна,Списання комісії за РКО неактивного рахунку за березень 2017р. Згідно дог № 1375 від 2000-01-12р. Без ПДВ,26006799976560,current,50.00,"ПАТ КБ ""Правекс-банк""",14360920,юридична особа
ОПЗЖ,"Київ, Кловський узвіз, 9/2",70,2017-10-02,договір № 1375 2000-01-12р._1,Банківські послуги,Інші витрати,273322,Центральний офіс,21709375,Україна,Списання комісії за РКО неактивного рахунку за лютий 2017р. Згідно дог № 1375 від 2000-01-12р. Без ПДВ,26006799976560,current,50.00,"ПАТ КБ ""Правекс-банк""",14360920,юридична особа
ОПЗЖ,"Київ, вулиця Михайла Грушевського, 1Д",70,2017-09-15,П/д № 0915A1IRBA,Банківські послуги,Інші витрати,273356,Вінницька обласна організація Опозиційна платформа - За життя,41278737,Вінницька область,"Комісія за внесення коштів на рахунок, згідно відкритою офертою банку № б/н від 2017-08-02 та тарифів банку",26008055328839,current,5.00,"ПАТ КБ ""Приватбанк""",14360570,юридична особа
ОПЗЖ,"Київ, вулиця Михайла Грушевського, 1Д",70,2017-09-15,П/д № LLH8200079,Банківські послуги,Інші витрати,273355,Вінницька обласна організація Опозиційна платформа - За життя,41278737,Вінницька область,погашення заборгованості за розрахунково-касове обслуговування згідно угоди РКО № б/н від 2017-08-02,26008055328839,current,100.00,"ПАТ КБ ""Приватбанк""",14360570,юридична особа
ОПЗЖ,"Київ, Кловський узвіз, 9/2",70,2017-09-14,дог № 26002700419742 від 2017-06-13р._3,Банківські послуги,Інші витрати,273335,Центральний офіс,21709375,Україна,Плата за РКО: за відправку платежів згідно дог № 26002700419742 від 2017-06-13р. Без ПДВ,26002700419742,current,40.00,"ПАТ КБ ""Правекс-банк""",14360920,юридична особа
ОПЗЖ,"Київ, бульвар Тараса Шевченка, 18",76,2017-09-11,п/д № 4 від 2017-09-11,Послуги зв’язку,Послуги зв’язку,273334,Центральний офіс,21709375,Україна,послуги електрозвʼязку О/Р 8200004425510701,26002700419742,current,704.08,"ПАТ ""Укртелеком""",21560766,юридична особа
ОПЗЖ,"Київ, Кловський узвіз, 9/2",70,2017-09-01,дог № 26002700419742 від 2017-06-13р._2,Банківські послуги,Інші витрати,273333,Центральний офіс,21709375,Україна,Плата за РКО: щомісячна абонплата за розрахункове обслуговування згідно з п. 4.1. дог № 26002700419742 від 2017-06-13р. Без ПДВ,26002700419742,current,150.00,"ПАТ КБ ""Правекс-банк""",14360920,юридична особа
ОПЗЖ,"Київ, Кловський узвіз, 9/2",70,2017-08-22,дог № 26002700419742 від 2017-06-13р._1,Банківські послуги,Інші витрати,273332,Центральний офіс,21709375,Україна,Плата за РКО: за відправку платежів згідно дог № 26002700419742 від 2017-06-13р. Без ПДВ,26002700419742,current,40.00,"ПАТ КБ ""Правекс-банк""",14360920,юридична особа
ОПЗЖ,"Київ, вулиця Олександра Довженка, 3",74,2017-08-21,п/д №2 від 2017-08-21р.,"Придбання канцтоварів, паперу, інших предметів і матеріалів, а також госп товари",Придбання канцтоварів та госп. товарів,273331,Центральний офіс,21709375,Україна,"виготовлення пластикових карток згідно рахунку № 26 від 21.08.17р. В т.ч ПДВ 750,00 грн.",26002700419742,current,4500.00,"ТОВ ""Компанія ""Технограф""",39115208,юридична особа
ОПЗЖ,"Київ, вулиця Мечникова, 14/1",79,2017-08-14,п/д №1 від 2017-08-14,"Оренда будинків і приміщень та експлуатаційні витрати (прибирання, страхування орендованих будинків, охорона, сигналізація, ремонт, вивіз сміття, тощо)",Оренда нерухомості,273330,Центральний офіс,21709375,Україна,"оренда приміщення згідно договору № 54 від 2016-10-03р., в т.ч. ПДВ - 400,00 грн.",26002700419742,current,2400.00,"Асоціація ""Українсько-Ізраїльська торгова палата""",23153841,юридична особа
ОПЗЖ,"Київ, Кловський узвіз, 9/2",70,2017-07-03,дог № 26002700419742 від 2017-06-13р.,Банківські послуги,Інші витрати,273329,Центральний офіс,21709375,Україна,Плата за РКО: щомісячна абонплата за розрахункове обслуговування згідно з п. 4.1. дог № 26002700419742 від 2017-06-13р. Без ПДВ,26002700419742,current,150.00,"ПАТ КБ ""Правекс-банк""",14360920,юридична особа
ОПЗЖ,"Київ, Кловський узвіз, 9/2",70,2017-07-03,договір № 1375 2000-01-12р._5,Банківські послуги,Інші витрати,273328,Центральний офіс,21709375,Україна,плата за РКО щомісячна абонплата за розрахункове обслуговування згідно п. 4.1 дог. №1375 від 2000-01-12р без ПДВ,26006799976560,current,150.00,"ПАТ КБ ""Правекс-банк""",14360920,юридична особа
ОПЗЖ,"Київ, вулиця Мечникова, 14/1",79,2017-06-27,п/д №3 від 2017-06-27,"Оренда будинків і приміщень та експлуатаційні витрати (прибирання, страхування орендованих будинків, охорона, сигналізація, ремонт, вивіз сміття, тощо)",Оренда нерухомості,273327,Центральний офіс,21709375,Україна,"оренда приміщення згідно договору № 54 від 2016-10-03р., в т.ч. ПДВ - 266,67 грн.",26002700419742,current,1600.00,"Асоціація ""Українсько-Ізраїльська торгова палата""",23153841,юридична особа
ОПЗЖ,"Київ, Кловський узвіз, 9/2",70,2017-06-16,договір № 1375 2000-01-12р._4,Банківські послуги,Інші витрати,273326,Центральний офіс,21709375,Україна,Оплата комісії за зміну КЗПП 1 шт. зг п 4.1 договору на РКО. Без ПДВ,26006799976560,current,20.00,"ПАТ КБ ""Правекс-банк""",14360920,юридична особа
ОПЗЖ,"Київ, Кловський узвіз, 9/2",70,2017-05-03,договір № 1375 2000-01-12р._3,Банківські послуги,Інші витрати,273325,Центральний офіс,21709375,Україна,плата за РКО щомісячна абонплата за розрахункове обслуговування згідно п. 4.1 дог. №1375 від 2000-01-12р без ПДВ,26006799976560,current,150.00,"ПАТ КБ ""Правекс-банк""",14360920,юридична особа
ОПЗЖ,"Київ, вулиця Мечникова, 14/1",79,2017-04-05,п/д №1 від 2017-04-05,"Оренда будинків і приміщень та експлуатаційні витрати (прибирання, страхування орендованих будинків, охорона, сигналізація, ремонт, вивіз сміття, тощо)",Оренда нерухомості,273324,Центральний офіс,21709375,Україна,"оренда приміщення згідно договору № 54 від 2016-10-03р., в т.ч. ПДВ - 400,00 грн.",26006799976560,current,2400.00,"Асоціація ""Українсько-Ізраїльська торгова палата""",23153841,юридична особа
ОПЗЖ,"Київ, Кловський узвіз, 9/2",70,2017-01-30,договір № 1375 2000-01-12р.,Банківські послуги,Інші витрати,273321,Центральний офіс,21709375,Україна,Списання комісії за РКО неактивного рахунку за січень 2017р. Згідно дог № 1375 від 2000-01-12р. Без ПДВ,26006799976560,current,50.00,"ПАТ КБ ""Правекс-банк""",14360920,юридична особа
